[Event "Titled Tuesday Blitz October 18 Late 2022"]
[White "Remolar Gallen, Jose"]
[Black "Holt, Conrad"]
[WhiteFideId "2215187"]
[BlackFideId "2034387"]
[WhiteElo "2214"]
[BlackElo "2592"]
[Result "0-1"]
[Round "01"]
[TimeControl "180+1"]
[Date "2022.10.18"]
[WhiteClock "0:00:04"]
[BlackClock "0:01:05"]

1. d4 {[%clk 0:03:00]}  d5 {[%clk 0:02:59]} 2. c4 {[%clk 0:03:01]}  c6 {[%clk 0:02:59]} 3. Nc3 {[%clk 0:03:01]}  dxc4 {[%clk 0:03:00]} 4. Nf3 {[%clk 0:03:00]}  Nf6 {[%clk 0:02:59]} 5. a4 {[%clk 0:02:58]}  Bf5 {[%clk 0:02:58]} 6. e3 {[%clk 0:02:57]}  e6 {[%clk 0:02:58]} 7. Bxc4 {[%clk 0:02:58]}  Bb4 {[%clk 0:02:58]} 8. O-O {[%clk 0:02:58]}  O-O {[%clk 0:02:58]} 9. Qe2 {[%clk 0:02:59]}  Nbd7 {[%clk 0:02:57]} 10. e4 {[%clk 0:02:56]}  Bg4 {[%clk 0:02:56]} 11. Bg5 {[%clk 0:02:49]}  Bxf3 {[%clk 0:02:46]} 12. Qxf3 {[%clk 0:02:48]}  Nb6 {[%clk 0:02:43]} 13. e5 {[%clk 0:02:19]}  Nxc4 {[%clk 0:02:38]} 14. exf6 {[%clk 0:01:56]}  g6 {[%clk 0:02:31]} 15. Qh3 {[%clk 0:01:26]}  Re8 {[%clk 0:02:27]} 16. Ne4 {[%clk 0:01:17]}  Qxd4 {[%clk 0:02:21]} 17. Qh4 {[%clk 0:01:05]}  Nd6 {[%clk 0:02:10]} 18. Rfe1 {[%clk 0:00:36]}  Nf5 {[%clk 0:02:06]} 19. Qf4 {[%clk 0:00:31]}  Bxe1 {[%clk 0:01:58]} 20. Rxe1 {[%clk 0:00:32]}  e5 {[%clk 0:01:55]} 21. Qf3 {[%clk 0:00:31]}  Rad8 {[%clk 0:01:52]} 22. g4 {[%clk 0:00:31]}  Nd6 {[%clk 0:01:51]} 23. Nc3 {[%clk 0:00:16]}  e4 {[%clk 0:01:40]} 24. Qh3 {[%clk 0:00:16]}  e3 {[%clk 0:01:41]} 25. fxe3 {[%clk 0:00:11]}  Qc4 {[%clk 0:01:24]} 26. e4 {[%clk 0:00:12]}  Nxe4 {[%clk 0:01:11]} 27. Qh6 {[%clk 0:00:11]}  Nxf6 {[%clk 0:01:07]} 28. Rxe8+ {[%clk 0:00:04]}  Rxe8 {[%clk 0:01:07]} 29. Bxf6 {[%clk 0:00:04]}  Qxg4+ {[%clk 0:01:07]} 30. Kf2 {[%clk 0:00:05]}  Qf5+ {[%clk 0:01:05]} 31. Kg3 {[%clk 0:00:04]}  Qxf6 {[%clk 0:01:05]} 0-1


[Site "https://www.chess.com"]

[Event "Titled Tuesday Blitz October 18 Late 2022"]
[White "Reprintsev, Alexander"]
[Black "Madaminov, Mukhiddin"]
[WhiteFideId "14100541"]
[BlackFideId "14210703"]
[WhiteElo "2230"]
[BlackElo "2341"]
[Result "0-1"]
[Round "01"]
[TimeControl "180+1"]
[Date "2022.10.18"]
[WhiteClock "0:00:43"]
[BlackClock "0:01:12"]

1. e4 {[%clk 0:02:58]}  e6 {[%clk 0:02:59]} 2. d4 {[%clk 0:02:57]}  d5 {[%clk 0:02:59]} 3. Nc3 {[%clk 0:02:57]}  Nf6 {[%clk 0:02:59]} 4. Bg5 {[%clk 0:02:56]}  Bb4 {[%clk 0:02:58]} 5. e5 {[%clk 0:02:54]}  h6 {[%clk 0:02:58]} 6. exf6 {[%clk 0:02:54]}  hxg5 {[%clk 0:02:58]} 7. fxg7 {[%clk 0:02:55]}  Rg8 {[%clk 0:02:57]} 8. a3 {[%clk 0:02:55]}  Bd6 {[%clk 0:02:47]} 9. h4 {[%clk 0:02:46]}  gxh4 {[%clk 0:02:45]} 10. Qh5 {[%clk 0:02:43]}  Qf6 {[%clk 0:02:44]} 11. Nf3 {[%clk 0:02:42]}  Nc6 {[%clk 0:02:31]} 12. Bb5 {[%clk 0:02:41]}  Bd7 {[%clk 0:02:30]} 13. Qxh4 {[%clk 0:02:33]}  Qxg7 {[%clk 0:02:27]} 14. g3 {[%clk 0:02:30]}  Be7 {[%clk 0:02:26]} 15. Qh7 {[%clk 0:02:25]}  O-O-O {[%clk 0:02:18]} 16. Bxc6 {[%clk 0:02:25]}  Bxc6 {[%clk 0:02:13]} 17. Ne5 {[%clk 0:02:25]}  Rdf8 {[%clk 0:01:56]} 18. O-O-O {[%clk 0:02:24]}  Be8 {[%clk 0:01:55]} 19. Ne2 {[%clk 0:02:15]}  Qf6 {[%clk 0:01:43]} 20. Nf4 {[%clk 0:01:53]}  Bd6 {[%clk 0:01:37]} 21. Rhe1 {[%clk 0:01:36]}  Bb5 {[%clk 0:01:24]} 22. Kb1 {[%clk 0:01:33]}  Rh8 {[%clk 0:01:22]} 23. Ng4 {[%clk 0:00:43]}  Qg5 {[%clk 0:01:12]} 0-1


[Site "https://www.chess.com"]

[Event "Titled Tuesday Blitz October 18 Late 2022"]
[White "Richter, Paul"]
[Black "Sailer, Mike"]
[WhiteFideId "2046350"]
[BlackFideId "2012901"]
[WhiteElo "2564"]
[BlackElo "2109"]
[Result "1-0"]
[Round "01"]
[TimeControl "180+1"]
[Date "2022.10.19"]
[WhiteClock "0:00:16"]
[BlackClock "0:00:01"]

1. e4 {[%clk 0:03:00]}  d5 {[%clk 0:02:57]} 2. exd5 {[%clk 0:03:00]}  Qxd5 {[%clk 0:02:58]} 3. Nc3 {[%clk 0:03:00]}  Qd6 {[%clk 0:02:58]} 4. Bc4 {[%clk 0:03:00]}  Nf6 {[%clk 0:02:59]} 5. Nge2 {[%clk 0:03:00]}  c6 {[%clk 0:02:58]} 6. d4 {[%clk 0:03:00]}  Bf5 {[%clk 0:02:58]} 7. Bf4 {[%clk 0:02:56]}  Qd8 {[%clk 0:02:58]} 8. h4 {[%clk 0:02:47]}  e6 {[%clk 0:02:53]} 9. Ng3 {[%clk 0:02:46]}  Bg4 {[%clk 0:02:41]} 10. f3 {[%clk 0:02:44]}  Bh5 {[%clk 0:02:24]} 11. Qd2 {[%clk 0:02:27]}  Bd6 {[%clk 0:02:06]} 12. Nce4 {[%clk 0:02:13]}  Nxe4 {[%clk 0:02:00]} 13. Nxe4 {[%clk 0:02:07]}  Be7 {[%clk 0:01:42]} 14. O-O-O {[%clk 0:01:58]}  Bg6 {[%clk 0:01:43]} 15. h5 {[%clk 0:01:24]}  Bxe4 {[%clk 0:01:42]} 16. fxe4 {[%clk 0:01:25]}  Nd7 {[%clk 0:01:35]} 17. d5 {[%clk 0:01:19]}  cxd5 {[%clk 0:01:19]} 18. exd5 {[%clk 0:01:19]}  e5 {[%clk 0:01:18]} 19. d6 {[%clk 0:01:07]}  Bf6 {[%clk 0:01:12]} 20. Be3 {[%clk 0:01:03]}  O-O {[%clk 0:01:11]} 21. Kb1 {[%clk 0:00:55]}  a6 {[%clk 0:01:00]} 22. h6 {[%clk 0:00:38]}  g6 {[%clk 0:01:00]} 23. g4 {[%clk 0:00:38]}  b5 {[%clk 0:00:59]} 24. Bb3 {[%clk 0:00:30]}  a5 {[%clk 0:00:57]} 25. a3 {[%clk 0:00:29]}  a4 {[%clk 0:00:49]} 26. Ba2 {[%clk 0:00:29]}  Rb8 {[%clk 0:00:44]} 27. Rhf1 {[%clk 0:00:29]}  Bh8 {[%clk 0:00:30]} 28. Qd5 {[%clk 0:00:21]}  Qe8 {[%clk 0:00:22]} 29. g5 {[%clk 0:00:20]}  b4 {[%clk 0:00:21]} 30. axb4 {[%clk 0:00:19]}  Rxb4 {[%clk 0:00:20]} 31. c3 {[%clk 0:00:20]}  Rb8 {[%clk 0:00:15]} 32. Rf2 {[%clk 0:00:20]}  a3 {[%clk 0:00:13]} 33. b4 {[%clk 0:00:20]}  e4 {[%clk 0:00:11]} 34. Rdf1 {[%clk 0:00:20]}  Ne5 {[%clk 0:00:10]} 35. Bd4 {[%clk 0:00:20]}  Nf3 {[%clk 0:00:07]} 36. d7 {[%clk 0:00:16]}  Qd8 {[%clk 0:00:02]} 37. Bxh8 {[%clk 0:00:16]}  Kxh8 {[%clk 0:00:01]} 38. Qxe4 {[%clk 0:00:16]} 1-0


[Site "https://www.chess.com"]

[Event "Titled Tuesday Blitz October 18 Late 2022"]
[White "Roque Sola, Gisela"]
[Black "Popov, Mikhail"]
[WhiteFideId "5120241"]
[BlackFideId "4146182"]
[WhiteElo "1961"]
[BlackElo "2296"]
[Result "1-0"]
[Round "01"]
[TimeControl "180+1"]
[Date "2022.10.19"]
[WhiteClock "0:00:41"]
[BlackClock "0:00:31"]

1. e4 {[%clk 0:02:58]}  g6 {[%clk 0:02:58]} 2. d4 {[%clk 0:02:57]}  Bg7 {[%clk 0:02:57]} 3. Nc3 {[%clk 0:02:54]}  d6 {[%clk 0:02:58]} 4. Be3 {[%clk 0:02:53]}  a6 {[%clk 0:02:58]} 5. Qd2 {[%clk 0:02:51]}  b5 {[%clk 0:02:58]} 6. h4 {[%clk 0:02:43]}  h5 {[%clk 0:02:57]} 7. Nh3 {[%clk 0:02:40]}  Bb7 {[%clk 0:02:57]} 8. f3 {[%clk 0:02:39]}  Nd7 {[%clk 0:02:57]} 9. Ng5 {[%clk 0:02:37]}  e6 {[%clk 0:02:57]} 10. O-O-O {[%clk 0:02:36]}  Qe7 {[%clk 0:02:58]} 11. Kb1 {[%clk 0:02:30]}  Ngf6 {[%clk 0:02:55]} 12. Ne2 {[%clk 0:02:11]}  Nb6 {[%clk 0:02:46]} 13. Nc1 {[%clk 0:02:08]}  d5 {[%clk 0:02:35]} 14. e5 {[%clk 0:02:05]}  Nfd7 {[%clk 0:02:35]} 15. g4 {[%clk 0:02:05]}  c5 {[%clk 0:02:30]} 16. gxh5 {[%clk 0:01:58]}  Rxh5 {[%clk 0:02:27]} 17. f4 {[%clk 0:01:53]}  Nc4 {[%clk 0:02:21]} 18. Bxc4 {[%clk 0:01:52]}  bxc4 {[%clk 0:02:22]} 19. Qa5 {[%clk 0:01:40]}  cxd4 {[%clk 0:01:35]} 20. Bxd4 {[%clk 0:01:35]}  Bf8 {[%clk 0:01:32]} 21. Qa4 {[%clk 0:01:22]}  O-O-O {[%clk 0:01:15]} 22. Rh3 {[%clk 0:01:18]}  Nc5 {[%clk 0:01:14]} 23. Bxc5 {[%clk 0:01:15]}  Qxc5 {[%clk 0:01:15]} 24. Nxf7 {[%clk 0:01:13]}  d4 {[%clk 0:01:12]} 25. Nxd8 {[%clk 0:01:11]}  Kxd8 {[%clk 0:01:10]} 26. Ne2 {[%clk 0:00:59]}  d3 {[%clk 0:01:03]} 27. cxd3 {[%clk 0:00:58]}  Kc7 {[%clk 0:00:52]} 28. dxc4 {[%clk 0:00:57]}  Bc6 {[%clk 0:00:48]} 29. Qxa6 {[%clk 0:00:53]}  Qf2 {[%clk 0:00:46]} 30. Rhd3 {[%clk 0:00:47]}  Be4 {[%clk 0:00:38]} 31. Nc3 {[%clk 0:00:44]}  Bxd3+ {[%clk 0:00:36]} 32. Rxd3 {[%clk 0:00:43]}  Qf1+ {[%clk 0:00:34]} 33. Rd1 {[%clk 0:00:43]}  Qf3 {[%clk 0:00:31]} 34. Nb5+ {[%clk 0:00:41]} 1-0


[Site "https://www.chess.com"]

[Event "Titled Tuesday Blitz October 18 Late 2022"]
[White "Rose, Felix"]
[Black "Ballester Llagaria, Luis Eduardo"]
[WhiteFideId "5105722"]
[BlackFideId "2297620"]
[WhiteElo "2039"]
[BlackElo "2344"]
[Result "0-1"]
[Round "01"]
[TimeControl "180+1"]
[Date "2022.10.19"]
[WhiteClock "0:00:26"]
[BlackClock "0:00:23"]

1. e4 {[%clk 0:02:59]}  e6 {[%clk 0:02:49]} 2. d4 {[%clk 0:02:58]}  d5 {[%clk 0:02:49]} 3. Nc3 {[%clk 0:02:58]}  Be7 {[%clk 0:02:47]} 4. Nf3 {[%clk 0:02:48]}  Nf6 {[%clk 0:02:46]} 5. Bd3 {[%clk 0:02:44]}  c5 {[%clk 0:02:45]} 6. exd5 {[%clk 0:02:38]}  exd5 {[%clk 0:02:32]} 7. dxc5 {[%clk 0:02:30]}  O-O {[%clk 0:02:31]} 8. O-O {[%clk 0:02:27]}  Nbd7 {[%clk 0:02:31]} 9. Bg5 {[%clk 0:02:21]}  Nxc5 {[%clk 0:02:21]} 10. Re1 {[%clk 0:01:40]}  Be6 {[%clk 0:02:02]} 11. Nd4 {[%clk 0:01:34]}  Bg4 {[%clk 0:01:57]} 12. Be2 {[%clk 0:01:32]}  Bxe2 {[%clk 0:01:50]} 13. Rxe2 {[%clk 0:01:31]}  h6 {[%clk 0:01:48]} 14. Nf5 {[%clk 0:00:58]}  Bd6 {[%clk 0:00:45]} 15. Nxd5 {[%clk 0:00:31]}  hxg5 {[%clk 0:00:41]} 16. Nxf6+ {[%clk 0:00:29]}  Qxf6 {[%clk 0:00:42]} 17. Qxd6 {[%clk 0:00:23]}  Qxf5 {[%clk 0:00:38]} 18. Re5 {[%clk 0:00:23]}  Ne4 {[%clk 0:00:32]} 19. Qd5 {[%clk 0:00:23]}  Qxf2+ {[%clk 0:00:28]} 20. Kh1 {[%clk 0:00:24]}  Nf6 {[%clk 0:00:25]} 21. Qxb7 {[%clk 0:00:23]}  Rad8 {[%clk 0:00:23]} 22. Ree1 {[%clk 0:00:21]}  Rd2 {[%clk 0:00:23]} 23. Rf1 {[%clk 0:00:21]}  Qe2 {[%clk 0:00:21]} 24. Rae1 {[%clk 0:00:20]}  Qc4 {[%clk 0:00:20]} 25. Qxa7 {[%clk 0:00:17]}  Qxc2 {[%clk 0:00:19]} 26. b4 {[%clk 0:00:16]}  Qxa2 {[%clk 0:00:18]} 27. Qxa2 {[%clk 0:00:16]}  Rxa2 {[%clk 0:00:19]} 28. Rb1 {[%clk 0:00:16]}  Rb8 {[%clk 0:00:19]} 29. b5 {[%clk 0:00:16]}  Ra5 {[%clk 0:00:19]} 30. Rf5 {[%clk 0:00:15]}  Ne4 {[%clk 0:00:19]} 31. Re5 {[%clk 0:00:15]}  Nc3 {[%clk 0:00:19]} 32. Rc1 {[%clk 0:00:15]}  Raxb5 {[%clk 0:00:17]} 33. Re3 {[%clk 0:00:12]}  Rb1 {[%clk 0:00:17]} 34. Ree1 {[%clk 0:00:11]}  Rxc1 {[%clk 0:00:16]} 35. Rxc1 {[%clk 0:00:12]}  Rb1 {[%clk 0:00:17]} 36. Rxb1 {[%clk 0:00:12]}  Nxb1 {[%clk 0:00:18]} 37. Kg1 {[%clk 0:00:12]}  f6 {[%clk 0:00:18]} 38. Kf2 {[%clk 0:00:13]}  Kf7 {[%clk 0:00:19]} 39. Ke3 {[%clk 0:00:13]}  Kg6 {[%clk 0:00:19]} 40. Ke4 {[%clk 0:00:14]}  Nd2+ {[%clk 0:00:18]} 41. Kd3 {[%clk 0:00:14]}  Nb3 {[%clk 0:00:19]} 42. g3 {[%clk 0:00:14]}  Na5 {[%clk 0:00:20]} 43. h3 {[%clk 0:00:14]}  Nb7 {[%clk 0:00:20]} 44. Kd4 {[%clk 0:00:15]}  Nd6 {[%clk 0:00:20]} 45. Kd5 {[%clk 0:00:15]}  Nf5 {[%clk 0:00:21]} 46. g4 {[%clk 0:00:16]}  Ne3+ {[%clk 0:00:20]} 47. Ke4 {[%clk 0:00:16]}  Ng2 {[%clk 0:00:21]} 48. Kf3 {[%clk 0:00:17]}  Nf4 {[%clk 0:00:21]} 49. Kg3 {[%clk 0:00:18]}  Kf7 {[%clk 0:00:21]} 50. h4 {[%clk 0:00:18]}  gxh4+ {[%clk 0:00:22]} 51. Kxf4 {[%clk 0:00:19]}  g5+ {[%clk 0:00:22]} 52. Kf3 {[%clk 0:00:19]}  Ke6 {[%clk 0:00:21]} 53. Ke3 {[%clk 0:00:19]}  f5 {[%clk 0:00:21]} 54. Kf3 {[%clk 0:00:19]}  Ke5 {[%clk 0:00:21]} 55. gxf5 {[%clk 0:00:19]}  Kxf5 {[%clk 0:00:22]} 56. Kg2 {[%clk 0:00:19]}  g4 {[%clk 0:00:23]} 57. Kf2 {[%clk 0:00:19]}  Kf4 {[%clk 0:00:24]} 58. Kg2 {[%clk 0:00:20]}  g3 {[%clk 0:00:25]} 59. Kh3 {[%clk 0:00:20]}  Kf3 {[%clk 0:00:25]} 60. Kxh4 {[%clk 0:00:21]}  g2 {[%clk 0:00:25]} 61. Kg5 {[%clk 0:00:22]}  g1=Q+ {[%clk 0:00:26]} 62. Kf5 {[%clk 0:00:23]}  Qd4 {[%clk 0:00:26]} 63. Ke6 {[%clk 0:00:23]}  Qc5 {[%clk 0:00:26]} 64. Kd7 {[%clk 0:00:23]}  Qb6 {[%clk 0:00:26]} 65. Ke7 {[%clk 0:00:24]}  Kf4 {[%clk 0:00:25]} 66. Kf7 {[%clk 0:00:24]}  Kf5 {[%clk 0:00:25]} 67. Kg7 {[%clk 0:00:25]}  Qe6 {[%clk 0:00:25]} 68. Kh7 {[%clk 0:00:25]}  Qg6+ {[%clk 0:00:20]} 69. Kh8 {[%clk 0:00:25]}  Qg5 {[%clk 0:00:21]} 70. Kh7 {[%clk 0:00:25]}  Kf6 {[%clk 0:00:22]} 71. Kh8 {[%clk 0:00:26]}  Qg7# {[%clk 0:00:23]} 0-1


[Site "https://www.chess.com"]

[Event "Titled Tuesday Blitz October 18 Late 2022"]
[White "Sanchez, Robert"]
[Black "Vivekananthan, Anish"]
[WhiteFideId "2034360"]
[BlackFideId "2090775"]
[WhiteElo "2381"]
[BlackElo "2732"]
[Result "0-1"]
[Round "01"]
[TimeControl "180+1"]
[Date "2022.10.19"]
[WhiteClock "0:00:55"]
[BlackClock "0:00:46"]

1. e4 {[%clk 0:03:00]}  c6 {[%clk 0:02:59]} 2. d4 {[%clk 0:03:00]}  d5 {[%clk 0:03:00]} 3. e5 {[%clk 0:03:00]}  Bf5 {[%clk 0:03:00]} 4. Nf3 {[%clk 0:03:00]}  e6 {[%clk 0:02:59]} 5. Be2 {[%clk 0:03:00]}  Ne7 {[%clk 0:02:56]} 6. O-O {[%clk 0:03:00]}  Nd7 {[%clk 0:02:57]} 7. c3 {[%clk 0:03:00]}  h6 {[%clk 0:02:56]} 8. Nbd2 {[%clk 0:03:00]}  Nc8 {[%clk 0:02:54]} 9. Re1 {[%clk 0:02:54]}  Be7 {[%clk 0:02:54]} 10. Nf1 {[%clk 0:02:54]}  O-O {[%clk 0:02:54]} 11. Ng3 {[%clk 0:02:52]}  Bg6 {[%clk 0:02:53]} 12. Be3 {[%clk 0:02:51]}  f6 {[%clk 0:02:45]} 13. exf6 {[%clk 0:02:43]}  Nxf6 {[%clk 0:02:46]} 14. Bd3 {[%clk 0:02:43]}  Qe8 {[%clk 0:02:43]} 15. Ne5 {[%clk 0:02:42]}  Bxd3 {[%clk 0:02:42]} 16. Qxd3 {[%clk 0:02:41]}  Nh7 {[%clk 0:02:31]} 17. f4 {[%clk 0:02:28]}  Nd6 {[%clk 0:02:29]} 18. c4 {[%clk 0:02:23]}  Bh4 {[%clk 0:02:11]} 19. Ng6 {[%clk 0:02:14]}  Bxg3 {[%clk 0:02:11]} 20. Nxf8 {[%clk 0:02:14]}  Bxe1 {[%clk 0:02:10]} 21. Qxh7+ {[%clk 0:02:14]}  Kxf8 {[%clk 0:02:10]} 22. Rxe1 {[%clk 0:02:08]}  dxc4 {[%clk 0:01:38]} 23. d5 {[%clk 0:02:00]}  exd5 {[%clk 0:01:34]} 24. f5 {[%clk 0:01:45]}  Ne4 {[%clk 0:01:02]} 25. Bc5+ {[%clk 0:01:24]}  Kf7 {[%clk 0:01:01]} 26. Qg6+ {[%clk 0:01:24]}  Kg8 {[%clk 0:01:02]} 27. Qg4 {[%clk 0:01:21]}  Qe5 {[%clk 0:01:00]} 28. h4 {[%clk 0:01:10]}  Qxb2 {[%clk 0:00:58]} 29. Rf1 {[%clk 0:01:01]}  Kh8 {[%clk 0:00:49]} 30. Qg6 {[%clk 0:00:56]}  Qf6 {[%clk 0:00:46]} 31. Qh5 {[%clk 0:00:55]} 0-1


[Site "https://www.chess.com"]

[Event "Titled Tuesday Blitz October 18 Late 2022"]
[White "Sivakumar, Shaaketh"]
[Black "Itkis, Boris"]
[WhiteFideId "30940176"]
[BlackFideId "1209167"]
[WhiteElo "2174"]
[BlackElo "2232"]
[Result "1-0"]
[Round "01"]
[TimeControl "180+1"]
[Date "2022.10.19"]
[WhiteClock "0:02:05"]
[BlackClock "0:01:17"]

1. d4 {[%clk 0:03:00]}  d5 {[%clk 0:02:57]} 2. Nf3 {[%clk 0:02:59]}  Nf6 {[%clk 0:02:57]} 3. Bf4 {[%clk 0:02:59]}  c5 {[%clk 0:02:56]} 4. e3 {[%clk 0:02:59]}  Nc6 {[%clk 0:02:57]} 5. Nbd2 {[%clk 0:02:59]}  Nh5 {[%clk 0:02:57]} 6. Bg5 {[%clk 0:02:56]}  h6 {[%clk 0:02:55]} 7. Bh4 {[%clk 0:02:56]}  g5 {[%clk 0:02:50]} 8. Ne5 {[%clk 0:02:55]}  Nxe5 {[%clk 0:02:50]} 9. dxe5 {[%clk 0:02:54]}  Ng7 {[%clk 0:02:41]} 10. Bg3 {[%clk 0:02:54]}  Nf5 {[%clk 0:02:35]} 11. Bb5+ {[%clk 0:02:38]}  Bd7 {[%clk 0:02:34]} 12. e6 {[%clk 0:02:35]}  Bxb5 {[%clk 0:02:26]} 13. Qh5 {[%clk 0:02:36]}  Nd6 {[%clk 0:02:21]} 14. Bxd6 {[%clk 0:02:18]}  Qxd6 {[%clk 0:02:22]} 15. Qxf7+ {[%clk 0:02:18]}  Kd8 {[%clk 0:02:21]} 16. O-O-O {[%clk 0:02:19]}  Be8 {[%clk 0:02:12]} 17. Qf5 {[%clk 0:02:18]}  Bg7 {[%clk 0:02:08]} 18. Nc4 {[%clk 0:02:15]}  Qc6 {[%clk 0:01:24]} 19. Rxd5+ {[%clk 0:02:12]}  Kc7 {[%clk 0:01:24]} 20. Rxc5 {[%clk 0:02:12]}  Rf8 {[%clk 0:01:22]} 21. Rxc6+ {[%clk 0:02:10]}  Bxc6 {[%clk 0:01:23]} 22. Qc5 {[%clk 0:02:06]}  Bf6 {[%clk 0:01:19]} 23. Rd1 {[%clk 0:02:05]}  b6 {[%clk 0:01:17]} 24. Rd7+ {[%clk 0:02:05]} 1-0


[Site "https://www.chess.com"]

[Event "Titled Tuesday Blitz October 18 Late 2022"]
[White "Sliwicki, Damian"]
[Black "Fernandez De La Vara, Arnaldo"]
[WhiteFideId "1127128"]
[BlackFideId "3518388"]
[WhiteElo "2058"]
[BlackElo "2387"]
[Result "0-1"]
[Round "01"]
[TimeControl "180+1"]
[Date "2022.10.19"]
[WhiteClock "0:00:44"]
[BlackClock "0:00:33"]

1. e4 {[%clk 0:02:58]}  c5 {[%clk 0:03:00]} 2. Nf3 {[%clk 0:02:56]}  e6 {[%clk 0:03:01]} 3. d4 {[%clk 0:02:56]}  cxd4 {[%clk 0:03:02]} 4. Nxd4 {[%clk 0:02:57]}  a6 {[%clk 0:03:03]} 5. Nc3 {[%clk 0:02:57]}  Qc7 {[%clk 0:03:02]} 6. g3 {[%clk 0:02:57]}  Nf6 {[%clk 0:03:02]} 7. Bg2 {[%clk 0:02:57]}  d6 {[%clk 0:03:02]} 8. O-O {[%clk 0:02:58]}  Be7 {[%clk 0:03:01]} 9. a4 {[%clk 0:02:52]}  O-O {[%clk 0:03:01]} 10. a5 {[%clk 0:02:52]}  Nbd7 {[%clk 0:02:59]} 11. h3 {[%clk 0:02:49]}  Rb8 {[%clk 0:02:59]} 12. Be3 {[%clk 0:02:46]}  b5 {[%clk 0:02:58]} 13. axb6 {[%clk 0:02:43]}  Nxb6 {[%clk 0:02:59]} 14. Kh2 {[%clk 0:02:38]}  Nc4 {[%clk 0:02:57]} 15. Bc1 {[%clk 0:02:37]}  Nxb2 {[%clk 0:02:55]} 16. Bxb2 {[%clk 0:02:35]}  Rxb2 {[%clk 0:02:56]} 17. Na4 {[%clk 0:02:33]}  Rb8 {[%clk 0:02:51]} 18. f4 {[%clk 0:02:21]}  Bd7 {[%clk 0:02:10]} 19. c3 {[%clk 0:02:12]}  Rfc8 {[%clk 0:02:04]} 20. Rf2 {[%clk 0:02:06]}  h5 {[%clk 0:01:58]} 21. Raa2 {[%clk 0:01:48]}  g6 {[%clk 0:01:36]} 22. Rae2 {[%clk 0:01:38]}  h4 {[%clk 0:01:31]} 23. g4 {[%clk 0:01:37]}  e5 {[%clk 0:01:24]} 24. fxe5 {[%clk 0:01:33]}  dxe5 {[%clk 0:01:24]} 25. Nf3 {[%clk 0:01:33]}  Qc4 {[%clk 0:00:57]} 26. Nb2 {[%clk 0:01:25]}  Qxc3 {[%clk 0:00:56]} 27. Rc2 {[%clk 0:01:22]}  Qe3 {[%clk 0:00:53]} 28. Nc4 {[%clk 0:01:16]}  Rxc4 {[%clk 0:00:50]} 29. Nxe5 {[%clk 0:00:55]}  Rxc2 {[%clk 0:00:45]} 30. Rxf6 {[%clk 0:00:45]}  Bxf6 {[%clk 0:00:38]} 31. Nxd7 {[%clk 0:00:45]}  Qf4+ {[%clk 0:00:33]} 32. Kh1 {[%clk 0:00:45]}  Rc1 {[%clk 0:00:33]} 33. Nxf6+ {[%clk 0:00:44]}  Kh8 {[%clk 0:00:33]} 0-1


[Site "https://www.chess.com"]